[Event "LV Capablanca Memorial Elite 2022"]
[Site "La Habana"]
[Date "2022.04.23"]
[Round "5.1"]
[White "Albornoz Cabrera, Carlos Daniel"]
[Black "Yilmaz, Mustafa"]
[Result "1/2-1/2"]
[ECO "B97"]
[WhiteElo "2567"]
[BlackElo "2627"]
[Annotator "TA"]
[PlyCount "64"]
[EventDate "2022.04.20"]
[EventType "tourn"]
[EventCountry "CUB"]
[SourceTitle "playchess.com"]
[Source "ChessBase"]
[SourceQuality "1"]
[TimeControl "40/5400+30:1800+30"]

{[%evp 14,64,9,-21,0,-14,-10,-12,22,19,15,23,14,11,10,-376,22,18,18,18,18,12,20,13,14,25,16,15,25,25,19,12,10,13,11,10,9,9,10,0,0,0,0,0,9,0,0,0,4,1,9,14,30]} 1. e4 {[%emt 0:00:07]} c5 {[%emt 0:00:04]} 2. Nf3 {[%emt 0:00:05]} d6 {[%emt 0:00:09]} 3. d4 {[%emt 0:00:04]} cxd4 {[%emt 0:00:04]} 4. Nxd4 {[%emt 0:00:04]} Nf6 {[%emt 0:00:07]} 5. Nc3 {[%emt 0:00:03]} a6 {[%emt 0:00:05]} 6. Bg5 {[%emt 0:00:07]} e6 {[%emt 0:00:06]} 7. f4 {[%emt 0:00:06]} Qb6 {[%emt 0:00:07]} 8. Qd3 {[%emt 0:00:19]} Qxb2 {[%emt 0:00:12] B97: Sicilian Najdorf: Poisoned Pawn.} 9. Rb1 {[%emt 0:00:07]} Qa3 {[%emt 0:00:05]} 10. f5 {[%emt 0:00:05]} Qa5 {[%emt 0:00:39]} 11. Qc4 {[%emt 0:00:50]} Nbd7 {[%emt 0:00:31] [#]} 12. fxe6 $1 {[%emt 0:00:22]} Qxg5 {[%emt 0:00:16]} 13. exf7+ {[%emt 0:00:12]} Ke7 {[%emt 0:00:08] Strongly threatening ...Ne5.} 14. Qe6+ {[%emt 0:00:17]} Kd8 {[%emt 0:00:05] [#]} 15. Qe8+ $1 Nxe8 {[%emt 0:00:07]} 16. Ne6+ {[%emt 0:00:16]} Ke7 {[%emt 0:00:07]} 17. fxe8=Q+ {[%emt 0:00:10]} (17. Nxg5 $2 {perishes.} Nef6 18. Bc4 h6 $19) 17... Kxe8 {[%emt 0:00:03]} 18. Nxg5 {[%emt 0:00:06]} Nc5 {[%emt 0:00:26]} 19. Nd5 {[%emt 0:00:25]} Be7 {[%emt 0:00:12]} 20. Nc7+ {[%emt 0:00:58] Pair of Knights!} Kd8 {[%emt 0:00:13]} 21. Nxa8 {[%emt 0:00:06] Threatens to win with Nf7+.} Bxg5 {[%emt 0:00:04]} 22. Nb6 {[%emt 0:05:47] The position is equal.} Nxe4 {[%emt 0:01:17] White must now prevent ...Bd2+.} 23. Nxc8 {[%emt 0:01:29]} Kxc8 {[%emt 0:00:06]} 24. Bd3 {[%emt 0:00:09]} Re8 {[%emt 0:00:04]} 25. Bxe4 {[%emt 0:00:03]} Rxe4+ $11 {[%emt 0:00:05][%mdl 4096] Endgame KRR-KRB} 26. Kf2 {[%emt 0:00:05] [#]} Ra4 $146 {[%emt 0:08:17]} ({Predecessor:} 26... Rf4+ 27. Ke2 Re4+ 28. Kd3 Re3+ 29. Kc4 Bf6 30. Rhe1 Ra3 {½-½ (30) Janosi,E (2212)-McLeod,S (2152) LSS email 2009}) 27. Rb2 {[%emt 0:00:07]} b5 {[%emt 0:02:02]} 28. c3 {[%emt 0:03:15]} Kd7 {[%emt 0:03:14]} 29. Rc2 {[%emt 0:05:38]} Kc6 {[%emt 0:08:38]} 30. Re1 {[%emt 0:09:33]} Bf6 {[%emt 0:04:10]} 31. Ke3 {[%emt 0:07:23]} Ra3 {[%emt 0:05:59]} 32. Kd2 {[%emt 0:01:34]} d5 {[%emt 0:01:50] Weighted Error Value: White=0.03 (flawless) /Black=0.03 (flawless)} 1/2-1/2

[Event "LV Capablanca Memorial Elite 2022"]
[Site "La Habana"]
[Date "2022.04.23"]
[Round "5.2"]
[White "Almeida Quintana, Omar"]
[Black "Quesada Perez, Yasser"]
[Result "1/2-1/2"]
[ECO "D14"]
[WhiteElo "2535"]
[BlackElo "2568"]
[Annotator "TA"]
[PlyCount "42"]
[EventDate "2022.04.20"]
[EventType "tourn"]
[EventCountry "CUB"]
[SourceTitle "playchess.com"]
[Source "ChessBase"]
[SourceQuality "1"]
[TimeControl "40/5400+30:1800+30"]

{[%evp 25,26,-2,4]} 1. d4 {[%emt 0:06:11]} d5 {[%emt 0:00:22]} 2. c4 {[%emt 0:00:29]} c6 {[%emt 0:00:27]} 3. Nf3 {[%emt 0:02:19]} Nf6 {[%emt 0:00:14]} 4. cxd5 {[%emt 0:00:31]} cxd5 {[%emt 0:00:13]} 5. Nc3 {[%emt 0:00:05]} Nc6 {[%emt 0:00:43]} 6. Bf4 {[%emt 0:00:09]} Bf5 {[%emt 0:02:05]} 7. e3 {[%emt 0:00:07]} e6 {[%emt 0:00:27]} 8. Bd3 {[%emt 0:00:39]} Bxd3 {[%emt 0:00:26]} 9. Qxd3 {[%emt 0:00:02]} Bd6 {[%emt 0:00:26]} 10. Bxd6 {[%emt 0:00:37]} Qxd6 {[%emt 0:00:06]} 11. O-O {[%emt 0:00:02]} O-O {[%emt 0:00:11]} 12. Rfc1 {[%emt 0:00:04]} Rfc8 {[%emt 0:00:41]} 13. h3 {[%emt 0:01:06]} h6 {[%emt 0:00:07] [#]} {Predecessor:} 14. Nd2 $146 {D14: Slav Defence: Exchange variation with ...Bf5.} Nd7 15. a3 a6 16. Rc2 Ne7 17. Rac1 Rc6 18. Ne2 Rac8 19. Rxc6 Rxc6 20. Rxc6 Qxc6 21. Qc3 g5 {½-½ (36) Li,D (2579)-Ma,Q (2645) Hangzhou 2022} 1/2-1/2

[Event "LV Capablanca Memorial Elite 2022"]
[Site "La Habana"]
[Date "2022.04.23"]
[Round "5.3"]
[White "Niemann, Hans Moke"]
[Black "Ganguly, Surya Shekhar"]
[Result "1-0"]
[ECO "A34"]
[WhiteElo "2642"]
[BlackElo "2627"]
[Annotator "TA"]
[PlyCount "179"]
[EventDate "2022.04.20"]
[EventType "tourn"]
[EventCountry "CUB"]
[SourceTitle "playchess.com"]
[Source "ChessBase"]
[SourceQuality "1"]
[TimeControl "40/5400+30:1800+30"]

{[%evp 35,179,-32,-25,-23,-28,-22,-23,-27,-24,-29,-16,-9,0,0,0,0,0,0,0,0,7,6,7,0,0,0,0,0,0,0,0,0,0,0,28,25,42,52,80,90,66,71,72,67,66,68,67,68,104,75,101,43,54,44,48,61,97,97,97,97,97,97,97,87,301,291,288,56,53,16,417,399,406,406,493,0,268,268,268,268,268,265,265,265,250,99,189,12,12,12,38,40,1762,1794,1762,1726,1439,1431,767,760,2620,2370,1355,604,29969,29972,29973,29969,29970,29971,29971,29972,29972,29973,29973,29973,29973,29974,29974,29975,29975,29975,29975,29976,29981,29977,29977,29977,29977,29978,29978,29979,29979,29980,29989,29983,29984,29984,29984,29983,29983,29983,29988,29989,29994,29990]} 1. c4 {[%emt 0:00:11]} c5 {[%emt 0:00:40]} 2. Nf3 {[%emt 0:02:01]} Nf6 {[%emt 0:00:07]} 3. g3 {[%emt 0:05:39]} d5 {[%emt 0:00:48]} 4. Bg2 {[%emt 0:02:13]} Nc6 {[%emt 0:01:37]} 5. cxd5 {[%emt 0:06:54]} Nxd5 {[%emt 0:00:08]} 6. Nc3 {[%emt 0:00:18]} Nc7 {[%emt 0:01:41]} 7. d3 {[%emt 0:02:40]} e5 {[%emt 0:00:24]} 8. O-O {[%emt 0:04:28]} Be7 {[%emt 0:00:07]} 9. Nd2 {[%emt 0:03:45]} O-O {[%emt 0:01:08]} 10. Nc4 {[%emt 0:00:54]} f6 {[%emt 0:01:41]} 11. f4 {[%emt 0:00:14]} exf4 {[%emt 0:00:55]} 12. Bxf4 {[%emt 0:00:10]} Be6 {[%emt 0:06:22]} 13. Qb3 {[%emt 0:09:32]} Rb8 {[%emt 0:08:39]} 14. Bxc7 {[%emt 0:00:35]} Qxc7 {[%emt 0:00:04]} 15. Bd5 {[%emt 0:00:10]} Bf7 {[%emt 0:00:34]} 16. Bxf7+ {[%emt 0:00:12]} Rxf7 {[%emt 0:00:07]} 17. Nd5 {[%emt 0:00:07]} Qd7 {[%emt 0:02:19]} 18. e4 {[%emt 0:02:16]} b5 {[%emt 0:10:42]} 19. Nce3 {[%emt 0:00:55]} Nd4 {[%emt 0:01:05]} 20. Qd1 {[%emt 0:00:27]} Bd6 {[%emt 0:00:13]} 21. Qh5 {[%emt 0:09:41]} Qe6 {[%emt 0:03:57]} 22. b3 {[%emt 0:10:25]} g6 {[%emt 0:10:42]} 23. Qg4 {[%emt 0:11:34]} f5 {[%emt 0:00:22]} 24. exf5 {[%emt 0:02:03]} Nxf5 {[%emt 0:00:06]} 25. Rae1 {[%emt 0:02:21]} Bf8 {[%emt 0:04:59]} 26. Qg5 {[%emt 0:12:34]} Nxe3 {[%emt 0:10:25]} 27. Nf6+ {[%emt 0:01:18]} Kh8 {[%emt 0:07:07]} 28. Rxe3 {[%emt 0:00:07]} Qd6 {[%emt 0:00:15]} (28... Qh3 $2 29. Qe5 Qxf1+ 30. Kxf1 $18) 29. Ne8 {[%emt 0:02:00]} Rxf1+ {[%emt 0:03:27]} 30. Kxf1 {[%emt 0:00:08]} Qd4 {[%emt 0:00:25]} 31. Qe5+ {[%emt 0:04:22]} Qxe5 {[%emt 0:01:36]} 32. Rxe5 {[%emt 0:00:02]} Rb6 {[%emt 0:01:22]} 33. Nc7 {[%emt 0:01:44]} Kg8 {[%emt 0:04:21]} 34. Re8 {[%emt 0:01:48]} Rb7 {[%emt 0:03:42]} 35. Rc8 {[%emt 0:00:40]} Kf7 {[%emt 0:02:51]} 36. Na6 {[%emt 0:00:36]} Rd7 {[%emt 0:04:08]} 37. Nxc5 {[%emt 0:00:33]} Rd5 {[%emt 0:02:27]} 38. Rc7+ {[%emt 0:00:21]} Be7 {[%emt 0:00:07]} 39. Ne4 {[%emt 0:02:03]} Rxd3 {[%emt 0:00:27]} 40. Ke2 {[%emt 0:00:00]} Rd4 {[%emt 0:00:00]} 41. Ke3 {[%emt 0:03:13]} Rd1 {[%emt 0:01:02]} 42. Rxa7 {[%emt 0:00:22]} Ke6 {[%emt 0:01:43]} 43. Ra6+ {[%emt 0:02:58]} (43. Nc3 $16 {And now Rxe7+ would win.} Bc5+ 44. Ke2 Bxa7 45. Nxd1) 43... Kf5 $14 {[%emt 0:03:31]} 44. Nf2 {[%emt 0:00:31]} Bc5+ {[%emt 0:03:59]} 45. Ke2 {[%emt 0:00:13]} Rg1 {[%emt 0:00:20]} 46. g4+ {[%emt 0:03:24]} Ke5 {[%emt 0:00:03]} 47. Nd3+ {[%emt 0:00:05]} Kd4 {[%emt 0:01:23]} 48. Nxc5 {[%emt 0:00:06]} Kxc5 {[%emt 0:00:05]} 49. Kf3 {[%emt 0:00:07]} b4 $2 {[%emt 0:06:24]} (49... Rh1 $16) 50. Ra7 $18 {[%emt 0:05:56]} Ra1 {[%emt 0:03:00]} 51. Kf4 $2 {[%emt 0:08:03]} (51. Rxh7 Rxa2 52. Kf4 Kd4 $16) (51. g5 $18) 51... h6 $1 $14 {[%emt 0:00:33]} 52. Ra6 {[%emt 0:00:17]} Rf1+ $2 {[%emt 0:01:53][%mdl 8192]} (52... Rh1 $1 $11 {and Black stays safe.}) 53. Kg3 $1 $18 {[%emt 0:00:06]} Rg1+ {[%emt 0:00:13]} 54. Kh3 {[%emt 0:02:48]} Ra1 {[%emt 0:00:12]} 55. Kg3 {[%emt 0:03:27]} (55. Rxg6 $142 Rxa2 56. Rxh6) 55... Rg1+ $1 $18 {[%emt 0:00:06]} 56. Kh4 $1 {[%emt 0:00:17]} Rh1 {[%emt 0:00:44] [#]} 57. h3 $1 {[%emt 0:00:07]} ({And not} 57. Rxg6 Rxh2+ 58. Kg3 Rxa2 $11) 57... g5+ {[%emt 0:00:22]} 58. Kg3 {[%emt 0:00:03]} Rc1 {[%emt 0:04:41]} 59. Rxh6 {[%emt 0:00:09]} Rc3+ {[%emt 0:00:03]} 60. Kf2 $2 {[%emt 0:00:47]} (60. Kg2 $18) 60... Rc2+ {[%emt 0:00:01]} (60... Kd4 $16) 61. Ke3 $2 {[%emt 0:00:27]} (61. Kf3 $18) 61... Rxa2 $11 {[%emt 0:00:02]} 62. Rh5 {[%emt 0:00:19]} Rb2 {[%emt 0:00:08]} 63. Rxg5+ {[%emt 0:00:05]} Kd6 $2 {[%emt 0:00:07][%mdl 8192]} (63... Kc6 $14) 64. h4 {[%emt 0:00:23]} ({Less strong is} 64. Rg6+ Kc5 $16) 64... Rxb3+ {[%emt 0:00:04]} 65. Kf4 {[%emt 0:02:01]} Rb1 {[%emt 0:06:20]} 66. h5 {[%emt 0:00:57]} Rf1+ {[%emt 0:08:05]} 67. Kg3 {[%emt 0:00:10]} Kc6 {[%emt 0:00:31]} 68. Re5 {[%emt 0:00:19]} b3 {[%emt 0:01:10]} 69. Re2 {[%emt 0:00:07]} Kd6 {[%emt 0:04:41]} 70. Rb2 {[%emt 0:00:34]} Ke5 {[%emt 0:00:49]} 71. Rxb3 {[%emt 0:00:07]} Rg1+ {[%emt 0:00:17]} 72. Kh4 {[%emt 0:00:10]} Kf6 {[%emt 0:00:09]} 73. Rb6+ {[%emt 0:00:06]} Kg7 {[%emt 0:00:11]} 74. h6+ {[%emt 0:00:13]} Kh7 {[%emt 0:00:10]} 75. Kh5 {[%emt 0:00:12]} Rh1+ {[%emt 0:00:27]} 76. Kg5 {[%emt 0:00:08]} Ra1 {[%emt 0:00:54]} 77. Rb7+ {[%emt 0:00:04]} Kg8 {[%emt 0:00:09]} 78. Kg6 {[%emt 0:00:09]} Ra6+ {[%emt 0:00:03]} 79. Kh5 {[%emt 0:00:06]} Rc6 {[%emt 0:00:43]} 80. g5 {[%emt 0:00:08]} Rc5 {[%emt 0:00:23]} 81. Rg7+ {[%emt 0:00:15]} Kh8 {[%emt 0:00:01]} 82. Re7 {[%emt 0:00:06]} Kg8 {[%emt 0:00:18]} 83. Kg6 {[%emt 0:00:07]} Rc6+ {[%emt 0:00:01] [#]} 84. Kf5 $1 {[%emt 0:00:07]} Rc5+ {[%emt 0:00:09]} 85. Re5 {[%emt 0:00:11]} Rc1 {[%emt 0:00:35]} 86. Kf6 {[%emt 0:00:15]} Rf1+ {[%emt 0:00:09]} 87. Kg6 {[%emt 0:00:11]} Rf8 {[%emt 0:00:01]} 88. Kh5 {[%emt 0:00:37]} Ra8 {[%emt 0:00:08]} 89. g6 {[%emt 0:00:11]} Rb8 {[%emt 0:00:02]} 90. h7+ {[%emt 0:00:30]} 1-0

[Event "LV Capablanca Memorial Elite 2022"]
[Site "La Habana"]
[Date "2022.04.23"]
[Round "5.4"]
[White "Quesada Perez, Luis Ernesto"]
[Black "Durarbayli, Vasif"]
[Result "1/2-1/2"]
[ECO "D46"]
[WhiteElo "2517"]
[BlackElo "2615"]
[Annotator "TA"]
[PlyCount "63"]
[EventDate "2022.04.20"]
[EventType "tourn"]
[EventCountry "CUB"]
[SourceTitle "playchess.com"]
[Source "ChessBase"]
[SourceQuality "1"]
[TimeControl "40/5400+30:1800+30"]

{[%evp 21,63,0,0,6,12,22,0,11,12,0,45,18,13,0,10,0,0,0,0,0,4,4,2,3,17,0,22,0,48,53,104,89,107,108,84,89,150,132,110,0,163,0,104,0]} 1. d4 {[%emt 0:00:08]} d5 {[%emt 0:00:07]} 2. c4 {[%emt 0:00:05]} c6 {[%emt 0:00:03]} 3. Nc3 {[%emt 0:00:21]} Nf6 {[%emt 0:00:07]} 4. Nf3 {[%emt 0:00:26]} e6 {[%emt 0:00:07]} 5. e3 {[%emt 0:04:27]} Nbd7 {[%emt 0:00:30]} 6. Qc2 {[%emt 0:04:51]} Bd6 {[%emt 0:00:27]} 7. Bd3 {[%emt 0:00:10]} O-O {[%emt 0:00:11]} 8. O-O {[%emt 0:00:08]} dxc4 {[%emt 0:00:02]} 9. Bxc4 {[%emt 0:00:07]} b5 {[%emt 0:00:03]} 10. Bd3 {[%emt 0:00:16]} Bb7 {[%emt 0:00:06]} 11. e4 {[%emt 0:00:05]} e5 {[%emt 0:00:40]} 12. h3 {[%emt 0:00:06] D46: Semi-Slav: 5 e3 Nbd7 6 Bd3, Black avoids the Meran.} Re8 {[%emt 0:12:56]} 13. dxe5 {[%emt 0:03:50]} Nxe5 {[%emt 0:00:41]} 14. Nxe5 {[%emt 0:00:14] The position is equal.} Bxe5 {[%emt 0:00:03]} ({Resist} 14... Rxe5 15. f4 Rh5 16. e5 Bc5+ 17. Kh1 $16) 15. Be3 {[%emt 0:00:10]} Bd4 {[%emt 0:00:24]} 16. Rfe1 {[%emt 0:02:35] [#]} a6 $146 {[%emt 0:02:20]} ({Predecessor:} 16... Bxe3 17. Rxe3 Qd4 18. Ne2 Qe5 19. Kh1 g6 20. Ng1 Rad8 21. Nf3 Qh5 22. Kg1 Nd7 {1-0 (86) Sokolov,I (2595)-Ravi,T (2405) Yogyakarta 2019}) 17. a4 {[%emt 0:05:01][%cal Ra4b5]} h6 {[%emt 0:16:33]} 18. Rad1 {[%emt 0:11:18]} Bxe3 $1 {[%emt 0:03:04]} 19. Rxe3 {[%emt 0:00:07][%cal Rd3b5]} Qc7 {[%emt 0:01:33]} 20. Ne2 {[%emt 0:01:23]} Rad8 {[%emt 0:06:21]} 21. axb5 {[%emt 0:05:37]} axb5 {[%emt 0:00:31]} 22. Ng3 {[%emt 0:26:09]} g6 {[%emt 0:01:16]} 23. Rf1 {[%emt 0:01:29][%cal Od3b5]} Qd6 {[%emt 0:12:47]} 24. Qc1 {[%emt 0:04:49]} Kg7 {[%emt 0:06:51]} (24... Re7 $11) 25. f4 $14 {[%emt 0:07:20] Threatens to win with e5.} Qd4 {[%emt 0:00:07] [#]} (25... Qd7 $14) 26. Kh2 $1 $16 {[%emt 0:00:10]} Nd5 {[%emt 0:08:01] [#]} 27. Ref3 {[%emt 0:00:29]} Nb4 {[%emt 0:00:01]} 28. Bb1 {[%emt 0:00:10]} Qd2 {[%emt 0:03:25]} (28... Kh8 $142) 29. Qc5 {[%emt 0:01:18] Black must now prevent f5.} Qd4 {[%emt 0:03:47]} 30. Qc1 {[%emt 0:07:37]} (30. Qxd4+ $16 Rxd4 31. f5) 30... Qd2 $1 $18 {[%emt 0:00:08]} 31. Qc5 {[%emt 0:01:58]} (31. Qc3+ $18 Qxc3 32. bxc3) 31... Qd4 $1 $16 {[%emt 0:00:01]} (31... Qxb2 32. f5 g5 33. f6+ Kg8 34. R3f2 $18) 32. Qc1 {[%emt 0:01:32] Weighted Error Value: White=0.18 (very precise) /Black=0.11 (very precise)} (32. Qxd4+ $16 Rxd4 33. f5) 1/2-1/2

[Event "LV Capablanca Memorial Elite 2022"]
[Site "La Habana"]
[Date "2022.04.23"]
[Round "5.5"]
[White "Ortiz Suarez, Isan Reynaldo"]
[Black "Mareco, Sandro"]
[Result "1-0"]
[ECO "C78"]
[WhiteElo "2531"]
[BlackElo "2643"]
[Annotator "TA"]
[PlyCount "94"]
[EventDate "2022.04.20"]
[EventType "tourn"]
[EventCountry "CUB"]
[SourceTitle "playchess.com"]
[Source "ChessBase"]
[SourceQuality "1"]
[TimeControl "40/5400+30:1800+30"]

{[%evp 12,94,16,23,14,14,25,17,18,-7,6,0,0,-2,0,0,0,0,0,0,0,-13,-11,0,0,-28,-6,-11,-24,-10,-13,-36,-42,-67,-77,-166,-171,-158,-84,-172,-174,-217,-211,-287,-295,-289,-292,-352,-366,-418,-393,-406,-356,-481,-448,-451,-456,-479,-468,-473,-369,-449,-358,-373,-354,-343,-326,-243,-327,-545,-603,-564,-533,-504,-499,-725,-581,-29980,-29980,-29989,-29990,-29997,0,-29998,-29999]} 1. e4 {[%emt 0:00:03]} e5 {[%emt 0:00:04]} 2. Nf3 {[%emt 0:00:11]} Nc6 {[%emt 0:00:04]} 3. Bb5 {[%emt 0:00:12]} a6 {[%emt 0:00:06]} 4. Ba4 {[%emt 0:00:06]} Nf6 {[%emt 0:00:04]} 5. d3 {[%emt 0:00:09]} Bc5 {[%emt 0:00:13]} 6. c3 {[%emt 0:00:56]} d6 {[%emt 0:00:22]} 7. O-O {[%emt 0:00:38]} Ba7 {[%emt 0:00:11] C78: Ruy Lopez: Archangelsk and Möller Defences.} 8. Re1 {[%emt 0:03:18]} O-O {[%emt 0:00:56]} 9. h3 {[%emt 0:01:10]} Nh5 {[%emt 0:05:03] The position is equal.} 10. Bg5 {[%emt 0:18:27]} f6 {[%emt 0:02:03]} 11. Be3 {[%emt 0:00:15]} Bxe3 {[%emt 0:00:08]} 12. fxe3 {[%emt 0:00:24][%cal Bf2e3,Be3e4][%mdl 32] [#]} f5 $146 {[%emt 0:00:05] Against g4} ({Predecessor:} 12... g6 13. Nbd2 Kh8 14. d4 Bd7 15. Bc2 Qe8 16. Kh2 f5 17. Qe2 f4 18. exf4 Nxf4 {0-1 (37) Kochukova,A (2111)-Girya,O (2469) Sochi 2020}) 13. Nbd2 {[%emt 0:02:07]} Nf6 {[%emt 0:39:06]} 14. exf5 {[%emt 0:07:00]} Bxf5 {[%emt 0:00:06]} 15. e4 {[%emt 0:02:16]} Bd7 {[%emt 0:00:05]} 16. Nf1 {[%emt 0:00:59]} Kh8 {[%emt 0:01:06]} 17. Ne3 {[%emt 0:02:11]} Ne7 {[%emt 0:06:44]} 18. Nh4 {[%emt 0:13:03]} c6 {[%emt 0:01:37]} 19. Bb3 {[%emt 0:02:43]} Qc7 {[%emt 0:04:20]} 20. Rf1 {[%emt 0:03:10]} a5 {[%emt 0:01:23]} 21. Kh1 {[%emt 0:05:27]} d5 {[%emt 0:01:07][%cal Bd6d5,Bd5d4][%mdl 32]} 22. Bc2 {[%emt 0:11:57]} d4 {[%emt 0:08:19]} 23. Nc4 {[%emt 0:03:08]} (23. Nef5 $17 {was necessary.} Bxf5 24. Nxf5) 23... b5 $19 {[%emt 0:00:42]} 24. Nd2 {[%emt 0:00:06] [#]} c5 {[%emt 0:01:28]} (24... g5 $142 $1 {[%cal Rg5h4]} 25. Nhf3 g4) 25. Rc1 {[%emt 0:01:36] [#]} (25. g4 $17) 25... g5 $1 $36 {[%emt 0:14:37][%mdl 2048] White is under strong pressure.} 26. Nhf3 {[%emt 0:01:07]} g4 {[%emt 0:00:03]} 27. hxg4 {[%emt 0:08:05]} Nxg4 {[%emt 0:00:14]} 28. Qe1 {[%emt 0:00:04]} Qd6 {[%emt 0:02:50]} ({Worse is} 28... Ne3 29. Ng5 Nxf1 30. Qh4 Ng3+ 31. Qxg3 $17) 29. a4 {[%emt 0:02:46]} Rf6 {[%emt 0:04:38]} ({But not} 29... bxa4 $2 30. Qh4 Ng6 31. Qg5 $19 (31. Nc4 $2 Nxh4 32. Nxd6 Ne3 $19)) 30. Kg1 {[%emt 0:04:00]} Ne3 {[%emt 0:01:35]} 31. Rf2 {[%emt 0:00:25]} Ng6 {[%emt 0:00:58] aiming for ...Nf4.} 32. Nf1 {[%emt 0:02:11]} Ng4 {[%emt 0:00:06]} 33. Rd2 {[%emt 0:00:48]} bxa4 {[%emt 0:00:46]} 34. Bd1 {[%emt 0:00:47]} Rg8 {[%emt 0:00:20]} 35. cxd4 {[%emt 0:02:15]} cxd4 {[%emt 0:00:07] Strongly threatening ...Nf4.} 36. Ng5 {[%emt 0:00:20]} h6 {[%emt 0:02:07]} 37. Bxg4 {[%emt 0:00:23]} Bxg4 {[%emt 0:00:19]} 38. Nh2 {[%emt 0:00:03]} Bd7 {[%emt 0:00:27]} 39. Ngf3 {[%emt 0:00:14]} Nf4 {[%emt 0:00:21]} 40. Qh4 $2 {[%emt 0:00:00]} (40. Kh1) 40... Bh3 {[%emt 0:00:00][%cal Rh3g2]} 41. Ne1 {[%emt 0:02:47]} Rfg6 {[%emt 0:08:21][%cal Rh3g2,Bf6g6,Bg6g1,Bg1h1][%mdl 32]} 42. Rcc2 {[%emt 0:00:06]} Qf8 {[%emt 0:04:21]} 43. Kh1 {[%emt 0:01:39] [#]} (43. Rf2 $142 Bd7 44. Kh1) 43... Qg7 $1 {[%emt 0:01:01][%cal Rf4g2]} 44. Nhf3 {[%emt 0:09:39] [#]} (44. Qf2 Nxg2) 44... Nxg2 $1 {[%emt 0:04:12]} 45. Qxh3 {[%emt 0:01:11]} (45. Qf2 Nxe1) 45... Nxe1 {[%emt 0:00:05][%mdl 64] Deflection} 46. Nxe1 {[%emt 0:01:00]} Rg1+ {[%emt 0:00:04]} 47. Kh2 {[%emt 0:00:04] [#] Rg2 is the strong threat.} Rh1+ $1 {[%emt 0:00:03][%mdl 33344] Skewer, Back Rank, Clearance.  Weighted Error Value: White=0.43/Black=0.07 (flawless) . Loss on time!?} 1-0

[Event "LV Capablanca Memorial Elite 2022"]
[Site "La Habana"]
[Date "2022.04.25"]
[Round "6.1"]
[White "Yilmaz, Mustafa"]
[Black "Mareco, Sandro"]
[Result "1/2-1/2"]
[ECO "D30"]
[WhiteElo "2627"]
[BlackElo "2643"]
[Annotator "TA"]
[PlyCount "40"]
[EventDate "2022.04.20"]
[EventType "tourn"]
[EventCountry "CUB"]
[SourceTitle "playchess.com"]
[Source "ChessBase"]
[SourceQuality "1"]
[TimeControl "40/5400+30:1800+30"]

{[%evp 9,40,25,25,32,35,15,31,22,24,28,34,34,39,18,54,9,22,9,36,0,47,16,11,18,23,6,39,25,47,41,52,68,66]} 1. d4 {[%emt 0:00:04]} d5 {[%emt 0:00:35]} 2. c4 {[%emt 0:00:10]} e6 {[%emt 0:00:04]} 3. Nf3 {[%emt 0:00:18]} a6 {[%emt 0:00:13]} 4. Bg5 {[%emt 0:01:19]} Be7 {[%emt 0:02:03]} 5. Bxe7 {[%emt 0:00:06]} Qxe7 {[%emt 0:00:07]} 6. Nbd2 {[%emt 0:03:42] D30: Queen's Gambit Declined: Systems without Nc3.} Nf6 {[%emt 0:01:35]} 7. g3 {[%emt 0:04:45]} O-O {[%emt 0:11:29]} 8. Rc1 {[%emt 0:09:19]} c5 {[%emt 0:40:59] [#]} 9. dxc5 $146 {[%emt 0:19:02]} ({Predecessor:} 9. cxd5 cxd4 10. Nxd4 exd5 11. Bg2 Qb4 12. N4b3 Nc6 13. O-O Bf5 14. Nf3 Rac8 15. Nfd4 Nxd4 16. Qxd4 {1-0 (47) Gallego Alcaraz,A (2523)-Prraneeth,V (2438) Budapest 2022}) 9... Qxc5 {[%emt 0:00:09]} 10. cxd5 {[%emt 0:01:16]} Qxd5 {[%emt 0:00:04]} 11. Nc4 {[%emt 0:01:09]} Qh5 {[%emt 0:03:47]} 12. Nce5 {[%emt 0:09:53]} Nc6 $1 {[%emt 0:07:10]} 13. Nxc6 {[%emt 0:07:07]} bxc6 {[%emt 0:00:04]} 14. Qa4 {[%emt 0:19:30] Prevents Qa5+.} Rb8 {[%emt 0:09:47]} (14... e5 $11 {deserves consideration.}) 15. b3 {[%emt 0:02:42]} a5 {[%emt 0:03:06]} 16. Bg2 {[%emt 0:04:07]} Ba6 {[%emt 0:10:17]} 17. Rc2 {[%emt 0:00:19]} ({Not} 17. Qxc6 $2 Rbc8 18. Qxc8 Rxc8 $19) ({Don't blunder} 17. Rxc6 $2 Bb5 18. Qxa5 Ra8 $19) 17... Qg6 $1 {[%emt 0:03:46]} 18. Rb2 {[%emt 0:01:17]} ({But not} 18. Qxc6 $2 Bb7 19. Nh4 Bxc6 $19) 18... Bb5 {[%emt 0:02:02]} 19. Qa3 {[%emt 0:06:50]} Nd5 {[%emt 0:00:31]} 20. O-O {[%emt 0:01:30] And now Ne5 would win.} Qf6 {[%emt 0:00:07] Against Ne5.  Weighted Error Value: White=0.09 (flawless) /Black=0.08 (flawless)} 1/2-1/2